Workbook

Sheet Instructions
A2: Estimated Insulin Calculator for a New Diabetic
A3: Created by David I. Crowley, MD, Pediatrics Residency Class of 2007
B4: Instructions:
B5: 1. Pink indicates required fields. Physician must enter value in order to proceed to calculated results.
B6: 2. Review the calculated results marked in yellow.
B7: 3. After verifying the calculated results, you must enter your final values in the green boxes in order to proceed.
B8: 4. Print only the "road maps", with copies for the attending, all residents, nursing staff, and patient's family.
B9: Click tabs below to begin

Sheet DKA 2 bag system
A1: Two bag system for IV rehydration in DKA
E3: Rates for IV repletion | G3: Bag 1 - mL/hr | I3: Bag 2 - mL/hr
E4: If blood glucose (mg/dL) | F4: >350 | G4: =B9 -> 0 | H4: (100%) | I4: 0 | J4: (0%)
A5: Demographics | E5: If blood glucose (mg/dL) | F5: 301-350 | G5: =G4*0.75 -> 0 | H5: (75%) | I5: =G4*0.25 -> 0 | J5: (25%)
A6: Patient Weight | C6: kg | E6: If blood glucose (mg/dL) | F6: 251-300 | G6: =G4*0.5 -> 0 | H6: (50%) | I6: =G4*0.5 -> 0 | J6: (50%)
E7: If blood glucose (mg/dL) | F7: 201-250 | G7: =G4*0.25 -> 0 | H7: (25%) | I7: =G4*0.75 -> 0 | J7: (75%)
A8: Maintenance IVF rate | B8: =IF(B6>85,125,(IF(B6<10,4*B6,(IF((B6-10)<10,40+2*(B6-10),60+1*(B6-20)))))) -> 0 | C8: mL/hr | E8: If blood glucose (mg/dL) | F8: 60-200 | G8: 0 | H8: (0%) | I8: =G4 -> 0 | J8: (100%)
A9: 1.5 x Maintenance | B9: =1.5*B8 -> 0 | C9: mL/hr | E9: If blood glucose (mg/dL) | F9: <60 | G9: 0 | H9: (0%) | I9: =G4 -> 0 | J9: (100%)
F10: Call resident immediately and hold insulin infusion
B13: Components of the fluid
B15: Bag 1 | C15: Bag 2
A16: Dextrose | B16: None | C16: D10% | D16: *Note components are different
A18: Base | B18: Normosol | C18: Normosol
B19: "Multiple | C19: "Multiple
B20: Electrolytes" | C20: Electrolytes"
B22: +15 mmol/L | C22: +15 mmol/L
A23: Additive 1 | B23: Potassium | C23: Sodium | D23: *Note components are different
B24: Phosphate | C24: Phosphate
B26: +10 mEq/L | C26: +40 mEq/L | D26: *Note quantity is different
A27: Additive 2 | B27: Potassium | C27: Potassium
B28: Chloride | C28: Chloride

Sheet Roadmap Step 1--Enter data
A1: Estimated Insulin Calculator for a New Diabetic | AA1: Novolog | AB1: Lantus | AC1: 1
AA2: Aspart | AB2: Levemir | AC2: 2
A3: Pink = Physician must enter a value for new diabetic | H3: Hints | AA3: Humalog
A4: Yellow = Physician must review the calculated value | AA4: U10 Novolog
A5: Green = Physician must enter the confirmed value | H5: To print out a new road map (e.g. for known diabetics): only a name, insulin names, and all green boxes are mandatory to print out a new "road map" | AA5: U10 Humalog
AA6: U10 Aspart
A7: Patient Information:
A8: Name:
A9: Wt: | C9: kg
A10: Age: | C10: yrs | H10: Age | I10: Units/kg/day
A11: Short-acting insulin: | B11: Novolog | H11: <5 years | I11: 0.3-0.8 | K11: (Use low end if small ketones)
A12: Long-acting insulin: | B12: Lantus | D12: Dosed | F12: time(s)/day | H12: 5-11 years | I12: 0.5-1.0 | K12: (Use high end if mod-large ketones, pubertal, or post-DKA)
A13: Total insulin dose: | C13: U/kg/day | H13: 12+ years | I13: 0.8-1.5
A15: Actual insulin
A16: Total daily insulin given: | B16: =ROUND(B13*B9,1) -> 0 | C16: units/day
B18: Estimated | E18: Actual
A19: Long-acting dose (40%): | B19: =ROUND(B16*0.4,1) -> 0 | C19: units/day | E19: 6 | F19: units/day
A21: Short-acting dose (60%): | B21: =ROUND(B16*0.6,1) -> 0 | C21: units/day
A22: Breakfast (short) (40%): | B22: =B16*0.6*0.4 -> 0 | C22: (calculated, not used)
A23: Lunch (short) (30%): | B23: =B16*0.6*0.3 -> 0 | C23: (calculated, not used)
A26: Nutrition
A27: Calories in ADA diet: | B27: =1000+(100*B10) -> 1000 | C27: kcals | H27: Calories = 1000 + 100*age
A28: Calories from carbs | B28: =B27/2 -> 500 | C28: kcals | H28: (1/2 of total carbs)
A29: Grams of carbs | B29: =B28/4 -> 125 | C29: grams | H29: (4 cal / 1 gm carbs)
A30: Grams of carbs/meal | B30: =B29/4 -> 31.25 | C30: grams/meal | H30: (25% per meal)
A33: Carbohydrate coverage | H33: (i.e. 1 Unit / X carbs)
B34: Estimated | E34: Actual
A35: carbs/unit (breakfast): | B35: =B30/B22 ->  | E35: 15 | F35: carbs/unit | H35: (Calculated "base doses" above / Units insulin per meal above)
A36: carbs/unit (all other): | B36: =B30/B23 ->  | E36: 20 | F36: carbs/unit
D37: ="+15gm free with certain snacks" -> +15gm free with certain snacks
A40: Blood sugar correction scale
A41: Estimated: | B41: 1 | C41: Unit | D41: per | E41: =IF(1500/B16>24, 1500/B16, 25) ->  | F41: mg/dL | H41: 1500/Total insulin per day
A42: Actual: | B42: 1 | C42: Unit | D42: per | E42: 100 | F42: mg/dL | H42: (minimum 1U / 25)
A44: Blood Glucose Target Range
C45: Low | E45: High
A46: Daytime | B46: Est | C46: =IF(B10<3,"100","80") -> 100 | D46: to | E46: =IF(B10<3,200,IF(B10>=8,150,180)) -> 200 | H46: Age | I46: Low | J46: High* | K46: Treat below
B47: Actual | C47: 80 | D47: to | E47: 150 | H47: <3 years old | I47: 100 | J47: >200 | K47: 80
H48: 3-7 yrs old | I48: 80 | J48: >180 | K48: 70 | M48: *50 points higher at night to avoid hypoglycemic coma
A49: Bedtime / 2-3 AM / AM snack | B49: Est | C49: =C46 -> 100 | D49: to | E49: =E46+50 -> 250 | H49: 8+ yrs old | I49: 80 | J49: >150 | K49: 60
B50: Actual | C50: 80 | D50: to | E50: 200
A52: Treat hypoglycemia below: | C52: =IF(B10<3,80,IF(B10>=8,60,70)) -> 80 | E52: 60
H55: (use only if unarousable or seizing)
A56: Glucagon dose: | C56: =IF(B9<20,0.5,1) -> 0.5 | D56: mg | E56: 1 | F56: mg IM | H56: <20 kg | I56: 0.5 mg
H57: >20 kg | I57: 1 mg
A58: Additional Comments:
A59: (if any)

Sheet Roadmap Step 2--Print
B1: ='Roadmap Step 1--Enter data'!B8 & "'s Insulin Road Map" -> 's Insulin Road Map
B2: =NOW() -> 2020-09-14T09:39:01.960
B4: My long-acting insulin is: | E4: ='Roadmap Step 1--Enter data'!B12 -> Lantus | G4: =IF('Roadmap Step 1--Enter data'!E12=2,"I take " & 'Roadmap Step 1--Enter data'!E19/2 & " units " & 'Roadmap Step 1--Enter data'!B12 & " twice a day.","I take " & 'Roadmap Step 1--Enter data'!E19 & " units " & 'Roadmap Step 1--Enter data'!B12 & " once a day.") -> I take 6 units Lantus once a day.
B6: My short-acting insulin is: | E6: ='Roadmap Step 1--Enter data'!B11 -> Novolog | G6: ="I take " & 'Roadmap Step 1--Enter data'!B11 & " before all meals and snacks. I use the scale below to help me decide how much to give." -> I take Novolog before all meals and snacks. I use the scale below to help me decide how much to give.
G9: ="If my blood sugar is ever under " & 'Roadmap Step 1--Enter data'!C47 & ", I use the hypoglycemia road map instead." -> If my blood sugar is ever under 80, I use the hypoglycemia road map instead.
B12: Carbohydrate coverage
B13: Breakfast | E13: ="1 Unit / " & 'Roadmap Step 1--Enter data'!E35 & " gm carbs" -> 1 Unit / 15 gm carbs | H13: =IF('Roadmap Step 1--Enter data'!B10<10, "AM Snack, 15gm free", "") -> AM Snack, 15gm free
B14: All other meals/snacks | E14: ="1 Unit / " & 'Roadmap Step 1--Enter data'!E36 & " gm carbs" -> 1 Unit / 20 gm carbs | H14: Bedtime Snack, 15gm free
B17: Daytime | H17: Nighttime
B18: ="Breakfast, Lunch, Afternoon Snack, and Dinner" -> Breakfast, Lunch, Afternoon Snack, and Dinner | H18: =IF('Roadmap Step 1--Enter data'!B10<10,"AM Snack, ","") & "Bedtime Snack and nighttime" -> AM Snack, Bedtime Snack and nighttime
B19: ="Daytime Rule = " & 'Roadmap Step 1--Enter data'!B42 & " " & 'Roadmap Step 1--Enter data'!C42 & " " & 'Roadmap Step 1--Enter data'!D42 & " " & 'Roadmap Step 1--Enter data'!E42 & " >" & 'Roadmap Step 1--Enter data'!E47 -> Daytime Rule = 1 Unit per 100 >150 | H19: ="Nighttime Rule = " & 'Roadmap Step 1--Enter data'!B42 & " " & 'Roadmap Step 1--Enter data'!C42 & " " & 'Roadmap Step 1--Enter data'!D42 & " " & 'Roadmap Step 1--Enter data'!E42 & " >" & 'Roadmap Step 1--Enter data'!E50 -> Nighttime Rule = 1 Unit per 100 >200
B21: Blood Glucose | E21: ='Roadmap Step 1--Enter data'!B11 -> Novolog | H21: Blood Glucose | K21: ='Roadmap Step 1--Enter data'!B11 -> Novolog
B22: Below | D22: ='Roadmap Step 1--Enter data'!C47 -> 80 | E22: See hypoglycemia road map | H22: Below | J22: ='Roadmap Step 1--Enter data'!C50 -> 80 | K22: See hypoglycemia road map
B23: =D22 -> 80 | C23: to | D23: =B24-1 -> 149 | E23: Carb coverage dose only | H23: =J22 -> 80 | I23: to | J23: =H24-1 -> 199 | K23: Carb coverage dose only
B24: ='Roadmap Step 1--Enter data'!E47 -> 150 | C24: to | D24: =IF(C24="+", "", B24+'Roadmap Step 1--Enter data'!E42-1) -> 249 | E24: =IF(B24="", "", IF(B24>499,"CALL MD","+" & 1*'Roadmap Step 1--Enter data'!B42 & " unit")) -> +1 unit | H24: ='Roadmap Step 1--Enter data'!E50 -> 200 | I24: to | J24: =IF(I24="+", "", H24+'Roadmap Step 1--Enter data'!E42-1) -> 299 | K24: =IF(H24="", "", IF(H24>499,"CALL MD","+" & 1*'Roadmap Step 1--Enter data'!B42 & " unit")) -> +1 unit
B25: =IF(B24<500,'Roadmap Step 1--Enter data'!E47+'Roadmap Step 1--Enter data'!E42,"") -> 250 | C25: =IF(AND(B25<>"",B25>499), "+", IF(B25="", "", "to")) -> to | D25: =IF(C25="+", "", IF(C25="to", B25+'Roadmap Step 1--Enter data'!E42-1,"")) -> 349 | E25: =IF(B25="", "", IF(B25>499,"CALL MD","+" & 2*'Roadmap Step 1--Enter data'!B42 & " unit")) -> +2 unit | H25: =IF(H24<500,'Roadmap Step 1--Enter data'!E50+'Roadmap Step 1--Enter data'!E42,"") -> 300 | I25: =IF(AND(H25<>"",H25>499), "+", IF(H25="", "", "to")) -> to | J25: =IF(I25="+", "", IF(I25="to", H25+'Roadmap Step 1--Enter data'!E42-1,"")) -> 399 | K25: =IF(H25="", "", IF(H25>499,"CALL MD","+" & 2*'Roadmap Step 1--Enter data'!B42 & " unit")) -> +2 unit
B26: =IF(B25<500,'Roadmap Step 1--Enter data'!E47+'Roadmap Step 1--Enter data'!E42*2,"") -> 350 | C26: to | D26: =IF(C26="+", "", IF(C26="to", B26+'Roadmap Step 1--Enter data'!E42-1,"")) -> 449 | E26: =IF(B26="", "", IF(B26>499,"CALL MD","+" & 3*'Roadmap Step 1--Enter data'!B42 & " unit")) -> +3 unit | H26: =IF(H25<500,'Roadmap Step 1--Enter data'!E50+'Roadmap Step 1--Enter data'!E42*2,"") -> 400 | I26: to | J26: =IF(I26="+", "", IF(I26="to", H26+'Roadmap Step 1--Enter data'!E42-1,"")) -> 499 | K26: =IF(H26="", "", IF(H26>499,"CALL MD","+" & 3*'Roadmap Step 1--Enter data'!B42 & " unit")) -> +3 unit
B27: =IF(B26<500,'Roadmap Step 1--Enter data'!E47+'Roadmap Step 1--Enter data'!E42*3,"") -> 450 | C27: to | D27: =IF(C27="+", "", IF(C27="to", B27+'Roadmap Step 1--Enter data'!E42-1,"")) -> 549 | E27: =IF(B27="", "", IF(B27>499,"CALL MD","+" & 4*'Roadmap Step 1--Enter data'!B42 & " unit")) -> +4 unit | H27: =IF(H26<500,'Roadmap Step 1--Enter data'!E50+'Roadmap Step 1--Enter data'!E42*3,"") -> 500 | I27: + | J27: =IF(I27="+", "", IF(I27="to", H27+'Roadmap Step 1--Enter data'!E42-1,"")) ->  | K27: =IF(H27="", "", IF(H27>499,"CALL MD","+" & 4*'Roadmap Step 1--Enter data'!B42 & " unit")) -> CALL MD
B28: =IF(B27<500,'Roadmap Step 1--Enter data'!E47+'Roadmap Step 1--Enter data'!E42*4,"") -> 550 | C28: + | D28: =IF(C28="+", "", IF(C28="to", B28+'Roadmap Step 1--Enter data'!E42-1,"")) ->  | E28: =IF(B28="", "", IF(B28>499,"CALL MD","+" & 5*'Roadmap Step 1--Enter data'!B42 & " unit")) -> CALL MD | H28: =IF(H27<500,'Roadmap Step 1--Enter data'!E50+'Roadmap Step 1--Enter data'!E42*4,"") ->  | J28: =IF(I28="+", "", IF(I28="to", H28+'Roadmap Step 1--Enter data'!E42-1,"")) ->  | K28: =IF(H28="", "", IF(H28>499,"CALL MD","+" & 5*'Roadmap Step 1--Enter data'!B42 & " unit")) -> 
B29: =IF(B28<500,'Roadmap Step 1--Enter data'!E47+'Roadmap Step 1--Enter data'!E42*5,"") ->  | D29: =IF(C29="+", "", IF(C29="to", B29+'Roadmap Step 1--Enter data'!E42-1,"")) ->  | E29: =IF(B29="", "", IF(B29>499,"CALL MD","+" & 6*'Roadmap Step 1--Enter data'!B42 & " unit")) ->  | H29: =IF(H28<500,'Roadmap Step 1--Enter data'!E50+'Roadmap Step 1--Enter data'!E42*5,"") ->  | J29: =IF(I29="+", "", IF(I29="to", H29+'Roadmap Step 1--Enter data'!E42-1,"")) ->  | K29: =IF(H29="", "", IF(H29>499,"CALL MD","+" & 6*'Roadmap Step 1--Enter data'!B42 & " unit")) -> 
B30: =IF(B29<500,'Roadmap Step 1--Enter data'!E47+'Roadmap Step 1--Enter data'!E42*6,"") ->  | D30: =IF(C30="+", "", IF(C30="to", B30+'Roadmap Step 1--Enter data'!E42-1,"")) ->  | E30: =IF(B30="", "", IF(B30>499,"CALL MD","+" & 7*'Roadmap Step 1--Enter data'!B42 & " unit")) ->  | H30: =IF(H29<500,'Roadmap Step 1--Enter data'!E50+'Roadmap Step 1--Enter data'!E42*6,"") ->  | J30: =IF(I30="+", "", IF(I30="to", H30+'Roadmap Step 1--Enter data'!E42-1,"")) ->  | K30: =IF(H30="", "", IF(H30>499,"CALL MD","+" & 7*'Roadmap Step 1--Enter data'!B42 & " unit")) -> 
B31: =IF(B30<500,'Roadmap Step 1--Enter data'!E47+'Roadmap Step 1--Enter data'!E42*7,"") ->  | D31: =IF(C31="+", "", IF(C31="to", B31+'Roadmap Step 1--Enter data'!E42-1,"")) ->  | E31: =IF(B31="", "", IF(B31>499,"CALL MD","+" & 8*'Roadmap Step 1--Enter data'!B42 & " unit")) ->  | H31: =IF(H30<500,'Roadmap Step 1--Enter data'!E50+'Roadmap Step 1--Enter data'!E42*7,"") ->  | J31: =IF(I31="+", "", IF(I31="to", H31+'Roadmap Step 1--Enter data'!E42-1,"")) ->  | K31: =IF(H31="", "", IF(H31>499,"CALL MD","+" & 8*'Roadmap Step 1--Enter data'!B42 & " unit")) -> 
B32: =IF(B31<500,'Roadmap Step 1--Enter data'!E47+'Roadmap Step 1--Enter data'!E42*8,"") ->  | D32: =IF(C32="+", "", IF(C32="to", B32+'Roadmap Step 1--Enter data'!E42-1,"")) ->  | E32: =IF(B32="", "", IF(B32>499,"CALL MD","+" & 9*'Roadmap Step 1--Enter data'!B42 & " unit")) ->  | H32: =IF(H31<500,'Roadmap Step 1--Enter data'!E50+'Roadmap Step 1--Enter data'!E42*8,"") ->  | J32: =IF(I32="+", "", IF(I32="to", H32+'Roadmap Step 1--Enter data'!E42-1,"")) ->  | K32: =IF(H32="", "", IF(H32>499,"CALL MD","+" & 9*'Roadmap Step 1--Enter data'!B42 & " unit")) -> 
B33: =IF(B32<500,'Roadmap Step 1--Enter data'!E47+'Roadmap Step 1--Enter data'!E42*9,"") ->  | C33: =IF(AND(B33<>"",B33>499), "+", IF(B33="", "", "to")) ->  | D33: =IF(C33="+", "", IF(C33="to", B33+'Roadmap Step 1--Enter data'!E42-1,"")) ->  | E33: =IF(B33="", "", IF(B33>499,"CALL MD","+" & 10*'Roadmap Step 1--Enter data'!B42 & " unit")) ->  | H33: =IF(H32<500,'Roadmap Step 1--Enter data'!E50+'Roadmap Step 1--Enter data'!E42*9,"") ->  | J33: =IF(I33="+", "", IF(I33="to", H33+'Roadmap Step 1--Enter data'!E42-1,"")) ->  | K33: =IF(H33="", "", IF(H33>499,"CALL MD","+" & 10*'Roadmap Step 1--Enter data'!B42 & " unit")) -> 
B34: =IF(B33<500,'Roadmap Step 1--Enter data'!E47+'Roadmap Step 1--Enter data'!E42*10,"") ->  | C34: =IF(AND(B34<>"",B34>499), "+", IF(B34="", "", "to")) ->  | D34: =IF(C34="+", "", IF(C34="to", B34+'Roadmap Step 1--Enter data'!E42-1,"")) ->  | E34: =IF(B34="", "", IF(B34>499,"CALL MD","+" & 11*'Roadmap Step 1--Enter data'!B42 & " unit")) ->  | H34: =IF(H33<500,'Roadmap Step 1--Enter data'!E50+'Roadmap Step 1--Enter data'!E42*10,"") ->  | J34: =IF(I34="+", "", IF(I34="to", H34+'Roadmap Step 1--Enter data'!E42-1,"")) ->  | K34: =IF(H34="", "", IF(H34>499,"CALL MD","+" & 11*'Roadmap Step 1--Enter data'!B42 & " unit")) -> 
B35: =IF(B34<500,'Roadmap Step 1--Enter data'!E47+'Roadmap Step 1--Enter data'!E42*11,"") ->  | C35: =IF(AND(B35<>"",B35>499), "+", IF(B35="", "", "to")) ->  | D35: =IF(C35="+", "", IF(C35="to", B35+'Roadmap Step 1--Enter data'!E42-1,"")) ->  | E35: =IF(B35="", "", IF(B35>499,"CALL MD","+" & 12*'Roadmap Step 1--Enter data'!B42 & " unit")) ->  | H35: =IF(H34<500,'Roadmap Step 1--Enter data'!E50+'Roadmap Step 1--Enter data'!E42*11,"") ->  | J35: =IF(I35="+", "", IF(I35="to", H35+'Roadmap Step 1--Enter data'!E42-1,"")) ->  | K35: =IF(H35="", "", IF(H35>499,"CALL MD","+" & 12*'Roadmap Step 1--Enter data'!B42 & " unit")) -> 
B36: =IF(B35<500,'Roadmap Step 1--Enter data'!E47+'Roadmap Step 1--Enter data'!E42*12,"") ->  | C36: =IF(AND(B36<>"",B36>499), "+", IF(B36="", "", "to")) ->  | D36: =IF(C36="+", "", IF(C36="to", B36+'Roadmap Step 1--Enter data'!E42-1,"")) ->  | E36: =IF(B36="", "", IF(B36>499,"CALL MD","+" & 13*'Roadmap Step 1--Enter data'!B42 & " unit")) ->  | H36: =IF(H35<500,'Roadmap Step 1--Enter data'!E50+'Roadmap Step 1--Enter data'!E42*12,"") ->  | J36: =IF(I36="+", "", IF(I36="to", H36+'Roadmap Step 1--Enter data'!E42-1,"")) ->  | K36: =IF(H36="", "", IF(H36>499,"CALL MD","+" & 13*'Roadmap Step 1--Enter data'!B42 & " unit")) -> 
B37: =IF(B36<500,'Roadmap Step 1--Enter data'!E47+'Roadmap Step 1--Enter data'!E42*13,"") ->  | C37: =IF(AND(B37<>"",B37>499), "+", IF(B37="", "", "to")) ->  | D37: =IF(C37="+", "", IF(C37="to", B37+'Roadmap Step 1--Enter data'!E42-1,"")) ->  | E37: =IF(B37="", "", IF(B37>499,"CALL MD","+" & 14*'Roadmap Step 1--Enter data'!B42 & " unit")) ->  | H37: =IF(H36<500,'Roadmap Step 1--Enter data'!E50+'Roadmap Step 1--Enter data'!E42*13,"") ->  | J37: =IF(I37="+", "", IF(I37="to", H37+'Roadmap Step 1--Enter data'!E42-1,"")) ->  | K37: =IF(H37="", "", IF(H37>499,"CALL MD","+" & 14*'Roadmap Step 1--Enter data'!B42 & " unit")) -> 
B38: =IF(B37<500,'Roadmap Step 1--Enter data'!E47+'Roadmap Step 1--Enter data'!E42*14,"") ->  | C38: =IF(AND(B38<>"",B38>499),"+", IF(B38="", "", "to")) ->  | D38: =IF(C38="+", "", IF(C38="to", B38+'Roadmap Step 1--Enter data'!E42-1,"")) ->  | E38: =IF(B38="", "", IF(B38>499,"CALL MD","+" & 15*'Roadmap Step 1--Enter data'!B42 & " unit")) ->  | H38: =IF(H37<500,'Roadmap Step 1--Enter data'!E50+'Roadmap Step 1--Enter data'!E42*14,"") ->  | J38: =IF(I38="+", "", IF(I38="to", H38+'Roadmap Step 1--Enter data'!E42-1,"")) ->  | K38: =IF(H38="", "", IF(H38>499,"CALL MD","+" & 15*'Roadmap Step 1--Enter data'!B42 & " unit")) -> 
B39: =IF(B38<500,'Roadmap Step 1--Enter data'!E47+'Roadmap Step 1--Enter data'!E42*15,"") ->  | C39: =IF(B39<>"", "+", "") ->  | E39: =IF(B39="", "", "CALL MD") ->  | H39: =IF(H38<500,'Roadmap Step 1--Enter data'!E50+'Roadmap Step 1--Enter data'!E42*15,"") ->  | I39: =IF(H39<>"", "+", "") ->  | K39: =IF(H39="", "", "CALL MD") -> 
A42: ="Additional comments: " & 'Roadmap Step 1--Enter data'!B58 -> Additional comments:
B47: Time to Wait Between Shot and Eating | H47: Check Urine for Ketones when:
B48: Under 100 | D48: 0 minutes | G48: 1. Blood sugar above 240
B49: 100 - 149 | D49: 5 minutes | G49: 2. Every time your child goes to bathroom when sick
B50: 150 - 199 | D50: 10 minutes | G50: 3. Call the Diabetes Center when your child has
B51: 200 - 249 | D51: 15 minutes | H51: moderate or large ketones
B52: 250 - 299 | D52: 20 minutes
B53: 300 or OVER | D53: 25 minutes
F56: Prepared by:

Sheet Roadmap Step3--Print
A1: ='Roadmap Step 1--Enter data'!B8 & "'s Hypoglycemia (low blood sugar) Road Map" -> 's Hypoglycemia (low blood sugar) Road Map
A2: =NOW() -> 2020-09-14T09:39:01.960
A4: Blood Sugar | B4: Time of Test | C4: Grams of carbs to eat | D4: Retest Blood sugar in 15-20 minutes | E4: What to do next
A5: ='Roadmap Step 1--Enter data'!E52+1 & " - " & 'Roadmap Step 1--Enter data'!C50 -> 61 - 80 | B5: Before a meal or snack | C5: No extra needed | D5: No | E5: ="Eat and give shot. Subtract "& 'Roadmap Step 1--Enter data'!B42 & " unit insulin for carb coverage." -> Eat and give shot. Subtract 1 unit insulin for carb coverage.
B6: Between meals, before bedtime snack, or overnight | C6: 8 gm complex carbs | D6: No | E6: Nothing more needed.
A7: ="46 - " & 'Roadmap Step 1--Enter data'!E52 -> 46 - 60 | B7: Before a meal or snack | C7: 15 gm fast-acting carbs | D7: Yes | E7: ="If blood sugar greater than " & 'Roadmap Step 1--Enter data'!E52 & " and shot time, give shot and eat meal." -> If blood sugar greater than 60 and shot time, give shot and eat meal.
E8: ="If blood sugar greater than " & 'Roadmap Step 1--Enter data'!E52 & " and NOT shot time, eat meal meal only." -> If blood sugar greater than 60 and NOT shot time, eat meal meal only.
E9: ="If blood sugar less than " & 'Roadmap Step 1--Enter data'!E52 & ", repeat " & C7 & " and retest in another 15-20 minutes. Once blood sugar is more than " & 'Roadmap Step 1--Enter data'!E52 & ", eat and give shot if appropriate." -> If blood sugar less than 60, repeat 15 gm fast-acting carbs and retest in another 15-20 minutes. Once blood sugar is more than 60, eat and give shot if appropriate.
B10: Between meals, before bedtime snack, or overnight | C10: 15 gm fast-acting carbs | D10: Yes | E10: ="If blood sugar greater than " & 'Roadmap Step 1--Enter data'!E52 & ", give 8 gm fast-acting carbs." -> If blood sugar greater than 60, give 8 gm fast-acting carbs.
E11: ="If blood sugar less than " & 'Roadmap Step 1--Enter data'!E52 & ", give another " & C10 & " carbs, then retest in 15-20 minutes." -> If blood sugar less than 60, give another 15 gm fast-acting carbs carbs, then retest in 15-20 minutes.
A12: 0 - 45 | B12: Before a meal or snack | C12: 22 gm fast-acting carbs | D12: Yes | E12: ="If blood sugar greater than " & 'Roadmap Step 1--Enter data'!E52 & " and shot time, give shot and eat meal." -> If blood sugar greater than 60 and shot time, give shot and eat meal.
E13: ="If blood sugar greater than " & 'Roadmap Step 1--Enter data'!E52 & " and NOT shot time, eat meal only." -> If blood sugar greater than 60 and NOT shot time, eat meal only.
E14: ="If blood sugar less than " & 'Roadmap Step 1--Enter data'!E52 & ", give another 15-22 gm fast-acting carbs, then retest in 15-20 minutes. Once blood sugar greater than " & 'Roadmap Step 1--Enter data'!E52 & ", eat and give shot if appropriate." -> If blood sugar less than 60, give another 15-22 gm fast-acting carbs, then retest in 15-20 minutes. Once blood sugar greater than 60, eat and give shot if appropriate.
B15: Between meals, before bedtime snack, or overnight | C15: 22 gm fast-acting carbs | D15: Yes | E15: ="If blood sugar greater than " & 'Roadmap Step 1--Enter data'!E52 & ", give 8 gm fast-acting carbs." -> If blood sugar greater than 60, give 8 gm fast-acting carbs.
E16: ="If blood sugar less than " & 'Roadmap Step 1--Enter data'!E52 & ", give another 15-22 gm fast-acting carbs, then retest in 15-20 minutes." -> If blood sugar less than 60, give another 15-22 gm fast-acting carbs, then retest in 15-20 minutes.
B18: Examples of fast-acting carbs to treat low blood sugar: | E18: Examples of complex carbs:
B19: 15 Grams (1 Carb) | C19: 22 Grams (1 and 1/2 Carb) | E19: 8 gm (1/2 Carb)
B20: 4 oz apple or orange juice | C20: 6 oz apple or orange juice | E20: 4 oz milk
B21: 3 oz grape juice | C21: 4 and 1/2 oz grape juice | E21: 2 oz ice cream
B22: 4 teaspoons sugar | C22: 6 teaspoons sugar
B23: 1 tablespoon honey | C23: 1 and 1/2 tablespoon honey
B24: 4 tablets DEX 4 | C24: 6 tablets DEX 4
B25: 3 BD Glucose tabs | C25: 4-5 BD Glucose tabs
B26: 5-6 oz regular soda | C26: 7-8 oz regular soda
B27: 1 tablespoon chocolate syrup (full strength) | C27: 1 and 1/2 tablespoon chocolate syrup (full strength)
B28: 1 tablespoon maple syrup (full strength) | C28: 1 and 1/2 tablespoon maple syrup (full strength)
A32: If unarousable or seizures: | C32: ="Give " & 'Roadmap Step 1--Enter data'!E56 & " mg GLUCAGON" -> Give 1 mg GLUCAGON
